[Event "*** Biggest EVER Titled Tuesday"]
[Site "Chess.com"]
[Date "2018.04.17"]
[Round "3"]
[White "josephymwale33"]
[Black "Triumphmate"]
[Result "0-1"]
[WhiteElo "2120"]
[BlackElo "2168"]
[TimeControl "180+2"]
[EndTime "13:34:18 PDT"]
[Termination "Triumphmate won by resignation"]

1. d4 {[%clk 0:03:01.9]} 1... Nf6 {[%clk 0:03:00.6]} 2. c4 {[%clk 0:03:03.1]}
2... e6 {[%clk 0:03:00.4]} 3. Nf3 {[%clk 0:03:03.1]} 3... d5 {[%clk 0:02:56.5]}
4. g3 {[%clk 0:03:04.1]} 4... Be7 {[%clk 0:02:56.1]} 5. Bg2 {[%clk 0:03:05.4]}
5... O-O {[%clk 0:02:58]} 6. O-O {[%clk 0:03:06.8]} 6... dxc4 {[%clk 0:02:59.8]}
7. Ne5 {[%clk 0:03:08]} 7... c5 {[%clk 0:03:01]} 8. dxc5 {[%clk 0:03:08.7]} 8...
Bxc5 {[%clk 0:03:01.6]} 9. Nxc4 {[%clk 0:03:08.6]} 9... Qe7 {[%clk 0:03:01.7]}
10. Nc3 {[%clk 0:03:06.6]} 10... Rd8 {[%clk 0:02:57.7]} 11. Qb3 {[%clk 0:03:04]}
11... Nc6 {[%clk 0:02:54.4]} 12. Bg5 {[%clk 0:03:01.1]} 12... Nd4 {[%clk
0:02:53.2]} 13. Qa4 {[%clk 0:02:53.4]} 13... Bd7 {[%clk 0:02:53.7]} 14. Qd1
{[%clk 0:02:53.4]} 14... Bc6 {[%clk 0:02:48.9]} 15. Qc1 {[%clk 0:02:51.6]} 15...
Bb4 {[%clk 0:02:40.3]} 16. Bxc6 {[%clk 0:02:47.1]} 16... Bxc3 {[%clk 0:02:38.6]}
17. Qe3 {[%clk 0:02:39]} 17... bxc6 {[%clk 0:02:01.5]} 18. bxc3 {[%clk
0:02:36.1]} 18... Nc2 {[%clk 0:02:02.6]} 19. Qf3 {[%clk 0:02:33.7]} 19... Nxa1
{[%clk 0:02:03.4]} 20. Rxa1 {[%clk 0:02:35.6]} 20... h6 {[%clk 0:02:03.8]} 21.
Be3 {[%clk 0:02:23.7]} 21... Nd5 {[%clk 0:02:03.8]} 22. Bd4 {[%clk 0:02:23.6]}
22... f6 {[%clk 0:01:58.3]} 23. e4 {[%clk 0:02:20.5]} 23... Nc7 {[%clk
0:01:53.2]} 24. Qe3 {[%clk 0:02:17.2]} 24... e5 {[%clk 0:01:52]} 25. Bc5 {[%clk
0:02:16.4]} 25... Qe6 {[%clk 0:01:53.4]} 26. Nd2 {[%clk 0:02:12.1]} 26... Nb5
{[%clk 0:01:48.8]} 27. Nf3 {[%clk 0:02:10.9]} 27... Rd7 {[%clk 0:01:42.9]} 28.
Nh4 {[%clk 0:02:11.1]} 28... Rad8 {[%clk 0:01:44.3]} 29. Nf5 {[%clk 0:02:10.9]}
29... Rd3 {[%clk 0:01:43.8]} 30. Qe2 {[%clk 0:02:12.2]} 30... R8d7 {[%clk
0:01:19.5]} 31. Qg4 {[%clk 0:02:10.8]} 31... Kh7 {[%clk 0:01:19.3]} 32. h4
{[%clk 0:02:09.2]} 32... g6 {[%clk 0:01:16.2]} 33. h5 {[%clk 0:02:01.8]} 33...
gxf5 {[%clk 0:00:57.1]} 34. Qg6+ {[%clk 0:02:02.4]} 34... Kh8 {[%clk 0:00:58.4]}
35. a4 {[%clk 0:01:57.2]} 35... Nxc3 {[%clk 0:00:52.6]} 36. Bf8 {[%clk
0:01:55.3]} 36... Qf7 {[%clk 0:00:29.3]} 37. Qxh6+ {[%clk 0:01:53.6]} 37... Kg8
{[%clk 0:00:28.4]} 38. Bc5 {[%clk 0:01:51]} 38... Nxe4 {[%clk 0:00:29.1]} 39.
Be3 {[%clk 0:01:49.1]} 39... Qg7 {[%clk 0:00:29.6]} 0-1

[Event "*** Biggest EVER Titled Tuesday"]
[Site "Chess.com"]
[Date "2018.04.17"]
[Round "3"]
[White "Godzillator"]
[Black "AndrewDGreen"]
[Result "1-0"]
[WhiteElo "2284"]
[BlackElo "2140"]
[TimeControl "180+2"]
[EndTime "13:34:20 PDT"]
[Termination "Godzillator won by resignation"]

1. d4 {[%clk 0:02:59.3]} 1... Nf6 {[%clk 0:02:59.3]} 2. c4 {[%clk 0:03:00.6]}
2... c5 {[%clk 0:02:59.3]} 3. d5 {[%clk 0:03:01.3]} 3... e5 {[%clk 0:03:00.5]}
4. Nc3 {[%clk 0:03:01.8]} 4... d6 {[%clk 0:03:01.1]} 5. e4 {[%clk 0:03:02.8]}
5... Nbd7 {[%clk 0:03:02.5]} 6. Bd3 {[%clk 0:03:03.7]} 6... Be7 {[%clk
0:03:01.8]} 7. Nge2 {[%clk 0:03:04.5]} 7... Nf8 {[%clk 0:03:01.9]} 8. f3 {[%clk
0:02:54.4]} 8... h5 {[%clk 0:03:00.6]} 9. Be3 {[%clk 0:02:54.1]} 9... h4 {[%clk
0:02:58.4]} 10. Qd2 {[%clk 0:02:54.4]} 10... Ng6 {[%clk 0:02:59.1]} 11. O-O-O
{[%clk 0:02:50.1]} 11... Bd7 {[%clk 0:02:51.6]} 12. g3 {[%clk 0:02:51]} 12...
Nh5 {[%clk 0:02:49.2]} 13. f4 {[%clk 0:02:43.8]} 13... exf4 {[%clk 0:02:44.4]}
14. gxf4 {[%clk 0:02:42.6]} 14... Qc7 {[%clk 0:02:14.7]} 15. Rhg1 {[%clk
0:02:27.2]} 15... a6 {[%clk 0:02:10.5]} 16. e5 {[%clk 0:02:26.4]} 16... dxe5
{[%clk 0:02:06.3]} 17. Bxg6 {[%clk 0:02:26.9]} 17... fxg6 {[%clk 0:02:07]} 18.
d6 {[%clk 0:02:27.9]} 18... Bxd6 {[%clk 0:02:01.3]} 19. Qxd6 {[%clk 0:02:28.1]}
19... Qxd6 {[%clk 0:02:03.2]} 20. Rxd6 {[%clk 0:02:28.5]} 20... exf4 {[%clk
0:01:59.2]} 21. Nxf4 {[%clk 0:02:26.7]} 21... Nxf4 {[%clk 0:02:00.4]} 22. Bxf4
{[%clk 0:02:27.3]} 22... Bf5 {[%clk 0:02:02.3]} 23. Nd5 {[%clk 0:02:23.4]} 23...
O-O {[%clk 0:02:02.8]} 24. Ne7+ {[%clk 0:02:23.4]} 24... Kh7 {[%clk 0:02:02.2]}
25. Nxf5 {[%clk 0:02:23.6]} 25... Rxf5 {[%clk 0:02:02]} 26. Bd2 {[%clk
0:02:16.5]} 26... Raf8 {[%clk 0:01:59.3]} 27. Rdxg6 {[%clk 0:02:15.5]} 27...
Rf1+ {[%clk 0:01:57.3]} 28. Kc2 {[%clk 0:02:14.1]} 28... Rxg1 {[%clk 0:01:57.7]}
29. Rxg1 {[%clk 0:02:14.9]} 29... Rf2 {[%clk 0:01:59.6]} 30. h3 {[%clk
0:02:11.8]} 30... Rf3 {[%clk 0:02:00]} 31. Bc3 {[%clk 0:02:12.5]} 31... g6
{[%clk 0:01:59.6]} 32. Rh1 {[%clk 0:02:09.5]} 32... g5 {[%clk 0:01:37.3]} 33.
Kb3 {[%clk 0:02:07.6]} 33... Kg6 {[%clk 0:01:33.9]} 34. Ka4 {[%clk 0:02:08.6]}
34... b6 {[%clk 0:01:27.9]} 35. Be5 {[%clk 0:01:50]} 35... Rf2 {[%clk
0:01:20.3]} 36. Ka3 {[%clk 0:01:46.3]} 36... Kf5 {[%clk 0:01:15.6]} 37. Bc7
{[%clk 0:01:46.3]} 37... b5 {[%clk 0:01:16.8]} 38. Bb6 {[%clk 0:01:44.8]} 38...
b4+ {[%clk 0:00:58]} 39. Kb3 {[%clk 0:01:43.9]} 39... Rf3+ {[%clk 0:00:58.9]}
40. Ka4 {[%clk 0:01:44.5]} 40... Rf2 {[%clk 0:00:58.4]} 41. Bxc5 {[%clk
0:01:45.2]} 41... Rxb2 {[%clk 0:00:57.8]} 42. Bxb4 {[%clk 0:01:44]} 42... Rxa2+
{[%clk 0:00:58.1]} 43. Kb3 {[%clk 0:01:45.1]} 43... Rf2 {[%clk 0:00:56.2]} 44.
c5 {[%clk 0:01:46.1]} 44... Ke4 {[%clk 0:00:52.7]} 45. c6 {[%clk 0:01:44.1]}
45... Rf6 {[%clk 0:00:47.9]} 46. Rc1 {[%clk 0:01:42.1]} 46... Rf8 {[%clk
0:00:43.5]} 47. Bxf8 {[%clk 0:01:41.9]} 1-0

[Event "*** Biggest EVER Titled Tuesday"]
[Site "Chess.com"]
[Date "2018.04.17"]
[Round "3"]
[White "Flawless2018"]
[Black "JosefineHeinemann"]
[Result "0-1"]
[WhiteElo "2473"]
[BlackElo "2381"]
[TimeControl "180+2"]
[EndTime "13:34:20 PDT"]
[Termination "JosefineHeinemann won by resignation"]

1. e4 {[%clk 0:03:01.9]} 1... e6 {[%clk 0:03:00.5]} 2. d4 {[%clk 0:03:02.6]}
2... d5 {[%clk 0:03:01]} 3. Nc3 {[%clk 0:03:04.2]} 3... Nf6 {[%clk 0:02:58.8]}
4. Bg5 {[%clk 0:02:54]} 4... Bb4 {[%clk 0:02:54]} 5. e5 {[%clk 0:02:53.1]} 5...
h6 {[%clk 0:02:55.1]} 6. Be3 {[%clk 0:02:47.5]} 6... Ne4 {[%clk 0:02:54.4]} 7.
Ne2 {[%clk 0:02:48.8]} 7... a6 {[%clk 0:02:37.1]} 8. a3 {[%clk 0:02:38.6]} 8...
Nxc3 {[%clk 0:02:37.8]} 9. Nxc3 {[%clk 0:02:33.1]} 9... Be7 {[%clk 0:02:35.8]}
10. Qg4 {[%clk 0:02:30.2]} 10... g5 {[%clk 0:02:34]} 11. h4 {[%clk 0:02:23.1]}
11... h5 {[%clk 0:02:32.9]} 12. Qg3 {[%clk 0:02:23]} 12... g4 {[%clk 0:02:33.9]}
13. O-O-O {[%clk 0:02:24.2]} 13... Nd7 {[%clk 0:02:33]} 14. f3 {[%clk 0:02:25]}
14... Rg8 {[%clk 0:02:33]} 15. f4 {[%clk 0:02:20.4]} 15... c5 {[%clk 0:02:31.8]}
16. dxc5 {[%clk 0:02:17.3]} 16... Nxc5 {[%clk 0:02:31.6]} 17. f5 {[%clk
0:02:03.7]} 17... Qc7 {[%clk 0:02:29.2]} 18. Bxc5 {[%clk 0:01:54.5]} 18... Qxc5
{[%clk 0:02:24.1]} 19. f6 {[%clk 0:01:44.3]} 19... Bf8 {[%clk 0:02:23.5]} 20.
Na4 {[%clk 0:01:32]} 20... Qc7 {[%clk 0:02:19.2]} 21. Qb3 {[%clk 0:01:24.2]}
21... b5 {[%clk 0:01:53.2]} 22. Nc3 {[%clk 0:01:18.7]} 22... Rb8 {[%clk
0:01:46]} 23. Rxd5 {[%clk 0:01:01.9]} 23... exd5 {[%clk 0:01:43.3]} 24. Nxd5
{[%clk 0:01:03.8]} 24... Qxe5 {[%clk 0:01:38.6]} 25. Be2 {[%clk 0:00:11.9]}
25... Be6 {[%clk 0:01:33.8]} 26. Re1 {[%clk 0:00:08.7]} 26... Bh6+ {[%clk
0:01:20.2]} 27. Kb1 {[%clk 0:00:05.6]} 27... Bxd5 {[%clk 0:01:08.2]} 28. Qxd5
{[%clk 0:00:05]} 0-1

[Event "*** Biggest EVER Titled Tuesday"]
[Site "Chess.com"]
[Date "2018.04.17"]
[Round "3"]
[White "savinspm"]
[Black "alturas_pacificas"]
[Result "1-0"]
[WhiteElo "2024"]
[BlackElo "2173"]
[TimeControl "180+2"]
[EndTime "13:34:25 PDT"]
[Termination "savinspm won by resignation"]

1. e4 {[%clk 0:03:00.2]} 1... e5 {[%clk 0:03:00.3]} 2. Nf3 {[%clk 0:03:00.8]}
2... Nf6 {[%clk 0:03:01.7]} 3. Nxe5 {[%clk 0:03:01.2]} 3... d6 {[%clk
0:03:03.1]} 4. Nf3 {[%clk 0:03:01.8]} 4... Nxe4 {[%clk 0:03:04.5]} 5. Qe2 {[%clk
0:03:03.4]} 5... Qe7 {[%clk 0:03:04.9]} 6. d3 {[%clk 0:03:05]} 6... Nf6 {[%clk
0:03:06.2]} 7. Bg5 {[%clk 0:03:06.5]} 7... Nbd7 {[%clk 0:03:06.5]} 8. Nbd2
{[%clk 0:03:05.7]} 8... Qxe2+ {[%clk 0:03:07.6]} 9. Bxe2 {[%clk 0:03:06.4]} 9...
Be7 {[%clk 0:03:09.2]} 10. d4 {[%clk 0:03:05.8]} 10... O-O {[%clk 0:03:10.3]}
11. O-O {[%clk 0:03:05.4]} 11... h6 {[%clk 0:03:11.2]} 12. Bh4 {[%clk
0:03:05.8]} 12... Re8 {[%clk 0:03:12.4]} 13. Bd3 {[%clk 0:03:06.9]} 13... Nf8
{[%clk 0:03:08.6]} 14. c3 {[%clk 0:03:05.8]} 14... Bg4 {[%clk 0:03:06.8]} 15. h3
{[%clk 0:03:06.3]} 15... Bh5 {[%clk 0:03:07.8]} 16. Rfe1 {[%clk 0:03:04.1]}
16... Bg6 {[%clk 0:03:08.5]} 17. Bc4 {[%clk 0:02:54.1]} 17... d5 {[%clk
0:03:05.9]} 18. Bb3 {[%clk 0:02:54.5]} 18... c6 {[%clk 0:03:03.3]} 19. Ne5
{[%clk 0:02:54.6]} 19... Bh7 {[%clk 0:02:47.4]} 20. Ndf3 {[%clk 0:02:46.5]}
20... Ng6 {[%clk 0:02:48.4]} 21. Nxg6 {[%clk 0:02:44.4]} 21... Bxg6 {[%clk
0:02:49.2]} 22. Ne5 {[%clk 0:02:44.4]} 22... Bf5 {[%clk 0:02:47.2]} 23. g4
{[%clk 0:02:40]} 23... Be4 {[%clk 0:02:44.3]} 24. f3 {[%clk 0:02:41.1]} 24...
Bh7 {[%clk 0:02:44.2]} 25. Kg2 {[%clk 0:02:37.8]} 25... Rad8 {[%clk 0:02:39.5]}
26. Bf2 {[%clk 0:02:21.3]} 26... Nd7 {[%clk 0:02:38]} 27. Nxd7 {[%clk
0:02:17.1]} 27... Rxd7 {[%clk 0:02:38.8]} 28. Bh4 {[%clk 0:02:15.5]} 28... Kf8
{[%clk 0:02:34.9]} 29. Bg3 {[%clk 0:02:08.7]} 29... Bd6 {[%clk 0:02:31.1]} 30.
Rxe8+ {[%clk 0:02:06.8]} 30... Kxe8 {[%clk 0:02:31.1]} 31. Re1+ {[%clk 0:02:08]}
31... Kd8 {[%clk 0:02:28.3]} 32. Bxd6 {[%clk 0:02:01.8]} 32... Rxd6 {[%clk
0:02:28.1]} 33. Bd1 {[%clk 0:01:59.7]} 33... g5 {[%clk 0:02:22.7]} 34. Kg3
{[%clk 0:01:58.9]} 34... Rf6 {[%clk 0:02:20.5]} 35. h4 {[%clk 0:01:59]} 35...
Kd7 {[%clk 0:02:10.1]} 36. hxg5 {[%clk 0:01:59.7]} 36... hxg5 {[%clk 0:02:11.7]}
37. Re5 {[%clk 0:02:00.7]} 37... Rh6 {[%clk 0:01:55.9]} 38. Rxg5 {[%clk
0:01:39.6]} 38... Rh1 {[%clk 0:01:56.5]} 39. Rh5 {[%clk 0:01:40.9]} 39... Rxd1
{[%clk 0:01:55.8]} 40. Rxh7 {[%clk 0:01:41.8]} 40... Ke6 {[%clk 0:01:56.7]} 41.
Rh2 {[%clk 0:01:40.6]} 41... a5 {[%clk 0:01:54.6]} 42. a3 {[%clk 0:01:40.7]}
42... a4 {[%clk 0:01:55.5]} 43. Kf4 {[%clk 0:01:41.6]} 43... Rb1 {[%clk
0:01:38.1]} 44. g5 {[%clk 0:01:41.7]} 44... b6 {[%clk 0:01:37.6]} 45. Re2+
{[%clk 0:01:41.7]} 45... Kd7 {[%clk 0:01:35.1]} 46. Kf5 {[%clk 0:01:42.8]} 46...
c5 {[%clk 0:01:23.1]} 47. Kf6 {[%clk 0:01:38.9]} 47... Rf1 {[%clk 0:01:22.4]}
48. Re3 {[%clk 0:01:39.2]} 48... Rf2 {[%clk 0:01:21]} 49. Kxf7 {[%clk
0:01:39.8]} 49... Rxb2 {[%clk 0:01:22.6]} 50. g6 {[%clk 0:01:40.5]} 50... Rg2
{[%clk 0:01:24.1]} 51. g7 {[%clk 0:01:41.7]} 51... cxd4 {[%clk 0:01:25.2]} 52.
cxd4 {[%clk 0:01:42.1]} 52... Kc6 {[%clk 0:01:26.1]} 53. g8=Q {[%clk 0:01:41]}
53... Rxg8 {[%clk 0:01:27.3]} 54. Kxg8 {[%clk 0:01:42.9]} 54... Kb5 {[%clk
0:01:28.8]} 55. Rc3 {[%clk 0:01:44]} 55... Ka5 {[%clk 0:01:28.8]} 56. Kf7 {[%clk
0:01:45.1]} 56... b5 {[%clk 0:01:30.1]} 57. Ke6 {[%clk 0:01:46]} 57... b4 {[%clk
0:01:31.6]} 58. axb4+ {[%clk 0:01:47.3]} 58... Kxb4 {[%clk 0:01:33.5]} 59. Rc1
{[%clk 0:01:48]} 59... a3 {[%clk 0:01:34.7]} 60. Kxd5 {[%clk 0:01:49.1]} 60...
Kb3 {[%clk 0:01:36.1]} 61. f4 {[%clk 0:01:49.6]} 61... Kb2 {[%clk 0:01:37.4]}
62. Rh1 {[%clk 0:01:50.6]} 62... a2 {[%clk 0:01:38.7]} 63. f5 {[%clk 0:01:51.8]}
1-0

[Event "*** Biggest EVER Titled Tuesday"]
[Site "Chess.com"]
[Date "2018.04.17"]
[Round "3"]
[White "Grootneus"]
[Black "Eliwood44"]
[Result "1-0"]
[WhiteElo "2105"]
[BlackElo "2136"]
[TimeControl "180+2"]
[EndTime "13:34:37 PDT"]
[Termination "Grootneus won by resignation"]

1. e4 {[%clk 0:03:01.9]} 1... e5 {[%clk 0:02:56.9]} 2. Nf3 {[%clk 0:03:02.6]}
2... Nc6 {[%clk 0:02:57.6]} 3. Bb5 {[%clk 0:03:04]} 3... a6 {[%clk 0:02:57.8]}
4. Ba4 {[%clk 0:03:04.8]} 4... Nf6 {[%clk 0:02:58.7]} 5. d3 {[%clk 0:03:06.3]}
5... d6 {[%clk 0:02:58.5]} 6. c3 {[%clk 0:03:06.8]} 6... g6 {[%clk 0:02:59.1]}
7. O-O {[%clk 0:03:06.8]} 7... Bg7 {[%clk 0:02:56.9]} 8. Nbd2 {[%clk 0:03:07.9]}
8... O-O {[%clk 0:02:57.4]} 9. d4 {[%clk 0:03:09.2]} 9... b5 {[%clk 0:02:53.5]}
10. Bc2 {[%clk 0:02:58.5]} 10... Nd7 {[%clk 0:02:53.5]} 11. a4 {[%clk
0:02:56.5]} 11... Bb7 {[%clk 0:02:53]} 12. Re1 {[%clk 0:02:50.4]} 12... Re8
{[%clk 0:02:42.3]} 13. Nf1 {[%clk 0:02:46.6]} 13... Nf6 {[%clk 0:02:36.5]} 14.
d5 {[%clk 0:02:35.6]} 14... Ne7 {[%clk 0:02:35.9]} 15. Qe2 {[%clk 0:02:18.4]}
15... c6 {[%clk 0:02:33.1]} 16. dxc6 {[%clk 0:02:07.8]} 16... Bxc6 {[%clk
0:02:33]} 17. Bg5 {[%clk 0:02:08.9]} 17... h6 {[%clk 0:02:32]} 18. Bh4 {[%clk
0:02:09.6]} 18... g5 {[%clk 0:02:29.6]} 19. Bg3 {[%clk 0:02:10.3]} 19... Qc7
{[%clk 0:02:23.8]} 20. Rad1 {[%clk 0:02:09.1]} 20... Ng6 {[%clk 0:02:20.4]} 21.
Ne3 {[%clk 0:01:34]} 21... Nxe4 {[%clk 0:02:11.2]} 22. Nf5 {[%clk 0:01:32.3]}
22... Nxg3 {[%clk 0:02:08.4]} 23. hxg3 {[%clk 0:01:34.2]} 23... Rad8 {[%clk
0:02:06.1]} 24. Nh2 {[%clk 0:01:09.6]} 24... Bf8 {[%clk 0:01:56.8]} 25. Ng4
{[%clk 0:01:07.2]} 25... Bd7 {[%clk 0:01:41.7]} 26. Nf6+ {[%clk 0:00:52.5]}
26... Kh8 {[%clk 0:01:33.4]} 27. Nxe8 {[%clk 0:00:36.6]} 27... Rxe8 {[%clk
0:01:32.2]} 28. Qh5 {[%clk 0:00:37.7]} 28... Bxf5 {[%clk 0:01:24.4]} 29. Bxf5
{[%clk 0:00:38.3]} 29... Kg7 {[%clk 0:01:21.2]} 30. axb5 {[%clk 0:00:36.6]}
30... axb5 {[%clk 0:01:21.9]} 31. Bxg6 {[%clk 0:00:31.4]} 31... fxg6 {[%clk
0:01:22.4]} 32. Qe2 {[%clk 0:00:32.5]} 32... Qc4 {[%clk 0:01:20.1]} 33. Qxc4
{[%clk 0:00:23.9]} 33... bxc4 {[%clk 0:01:20.9]} 34. Re4 {[%clk 0:00:25]} 34...
Rb8 {[%clk 0:01:20.5]} 35. Rd2 {[%clk 0:00:25.9]} 35... d5 {[%clk 0:01:20.9]}
36. Rxe5 {[%clk 0:00:27.1]} 1-0

[Event "*** Biggest EVER Titled Tuesday"]
[Site "Chess.com"]
[Date "2018.04.17"]
[Round "3"]
[White "jcibarra"]
[Black "EndgameGrinder"]
[Result "1-0"]
[WhiteElo "2624"]
[BlackElo "2494"]
[TimeControl "180+2"]
[EndTime "13:34:40 PDT"]
[Termination "jcibarra won by resignation"]

1. e4 {[%clk 0:03:01.9]} 1... c5 {[%clk 0:03:01]} 2. Nf3 {[%clk 0:03:00.9]} 2...
e6 {[%clk 0:03:02.3]} 3. c3 {[%clk 0:03:01.2]} 3... Nf6 {[%clk 0:03:03.1]} 4. e5
{[%clk 0:03:01.7]} 4... Nd5 {[%clk 0:03:04.6]} 5. d4 {[%clk 0:03:03.3]} 5...
cxd4 {[%clk 0:03:06.2]} 6. cxd4 {[%clk 0:03:03.7]} 6... d6 {[%clk 0:03:07.8]} 7.
a3 {[%clk 0:03:03.8]} 7... g6 {[%clk 0:03:04.7]} 8. Bg5 {[%clk 0:03:02.7]} 8...
Qb6 {[%clk 0:03:03.4]} 9. Nbd2 {[%clk 0:02:52.1]} 9... h6 {[%clk 0:02:39.4]} 10.
Nc4 {[%clk 0:02:51.4]} 10... Qc7 {[%clk 0:02:38.7]} 11. Bd2 {[%clk 0:02:43.2]}
11... Nc6 {[%clk 0:02:29.2]} 12. Rc1 {[%clk 0:02:40.5]} 12... g5 {[%clk
0:02:24.4]} 13. h3 {[%clk 0:02:35.1]} 13... Bd7 {[%clk 0:02:14.7]} 14. Bd3
{[%clk 0:02:31.6]} 14... O-O-O {[%clk 0:02:07.1]} 15. b4 {[%clk 0:02:27.3]}
15... a6 {[%clk 0:01:57.7]} 16. a4 {[%clk 0:02:25.4]} 16... Kb8 {[%clk
0:01:45.8]} 17. b5 {[%clk 0:02:24.7]} 17... Ncb4 {[%clk 0:01:43.9]} 18. Be4
{[%clk 0:02:09.3]} 18... axb5 {[%clk 0:01:38.7]} 19. Nxd6 {[%clk 0:02:03]} 19...
Bxd6 {[%clk 0:01:39.5]} 20. Rxc7 {[%clk 0:02:00.9]} 20... Bxc7 {[%clk
0:01:41.4]} 21. axb5 {[%clk 0:01:52.6]} 21... Bxb5 {[%clk 0:01:35.3]} 22. Qb3
{[%clk 0:01:53.4]} 22... Bc6 {[%clk 0:01:26.2]} 23. O-O {[%clk 0:01:48.5]} 23...
f5 {[%clk 0:00:40.2]} 24. exf6 {[%clk 0:01:44.8]} 24... Nxf6 {[%clk 0:00:41.4]}
25. Bxc6 {[%clk 0:01:42.9]} 25... Nxc6 {[%clk 0:00:43.3]} 26. Rb1 {[%clk
0:01:39.1]} 26... b6 {[%clk 0:00:39.5]} 27. Qxe6 {[%clk 0:01:31.1]} 27... Rd6
{[%clk 0:00:40]} 28. Qa2 {[%clk 0:01:19.9]} 28... Nd5 {[%clk 0:00:25.1]} 29. Ra1
{[%clk 0:01:18.2]} 29... Kc8 {[%clk 0:00:26.2]} 30. Qa8+ {[%clk 0:01:17.4]}
30... Nb8 {[%clk 0:00:27.4]} 31. Ne5 {[%clk 0:01:17.2]} 31... Re8 {[%clk
0:00:21.4]} 32. Rc1 {[%clk 0:01:16.5]} 32... Kd8 {[%clk 0:00:18.7]} 33. Nf7+
{[%clk 0:01:11.4]} 33... Ke7 {[%clk 0:00:19.4]} 34. Nxd6 {[%clk 0:01:12.6]}
34... Kxd6 {[%clk 0:00:21.3]} 35. Qb7 {[%clk 0:01:09.4]} 35... Re2 {[%clk
0:00:20.4]} 36. Bb4+ {[%clk 0:01:09.1]} 36... Nxb4 {[%clk 0:00:20.9]} 37. Qxc7+
{[%clk 0:01:09.7]} 1-0

[Event "*** Biggest EVER Titled Tuesday"]
[Site "Chess.com"]
[Date "2018.04.17"]
[Round "3"]
[White "2165149677570"]
[Black "KRASAVCHIK2002"]
[Result "1-0"]
[WhiteElo "2145"]
[BlackElo "1989"]
[TimeControl "180+2"]
[EndTime "13:34:41 PDT"]
[Termination "2165149677570 won by resignation"]

1. e4 {[%clk 0:03:01.9]} 1... c5 {[%clk 0:03:00.3]} 2. Nf3 {[%clk 0:03:02.6]}
2... d6 {[%clk 0:03:01.5]} 3. Bb5+ {[%clk 0:03:02.9]} 3... Bd7 {[%clk
0:03:01.7]} 4. Bxd7+ {[%clk 0:03:04.2]} 4... Qxd7 {[%clk 0:03:03.2]} 5. c4
{[%clk 0:03:05.3]} 5... Nf6 {[%clk 0:03:03.2]} 6. Nc3 {[%clk 0:03:06.8]} 6... g6
{[%clk 0:03:03.6]} 7. d4 {[%clk 0:03:08.1]} 7... cxd4 {[%clk 0:03:04.1]} 8. Nxd4
{[%clk 0:03:10]} 8... Bg7 {[%clk 0:03:04.7]} 9. f3 {[%clk 0:03:09.6]} 9... O-O
{[%clk 0:03:05.7]} 10. O-O {[%clk 0:03:09.8]} 10... Rc8 {[%clk 0:03:06.4]} 11.
b3 {[%clk 0:03:10.7]} 11... d5 {[%clk 0:03:07.6]} 12. Nxd5 {[%clk 0:03:04.7]}
12... Nxd5 {[%clk 0:03:08.2]} 13. exd5 {[%clk 0:03:06.3]} 13... e6 {[%clk
0:03:07.6]} 14. Bb2 {[%clk 0:02:50.4]} 14... exd5 {[%clk 0:03:05.4]} 15. cxd5
{[%clk 0:02:51.5]} 15... Qxd5 {[%clk 0:03:05.1]} 16. Kh1 {[%clk 0:02:47]} 16...
Rd8 {[%clk 0:02:58.5]} 17. Qe2 {[%clk 0:02:27.1]} 17... Bxd4 {[%clk 0:02:51.8]}
18. Rad1 {[%clk 0:02:23.7]} 18... Nc6 {[%clk 0:02:47.9]} 19. Rd3 {[%clk
0:02:15.4]} 19... Qe6 {[%clk 0:02:46.4]} 20. Qxe6 {[%clk 0:01:58.1]} 20... fxe6
{[%clk 0:02:47.8]} 21. Ba3 {[%clk 0:01:57.8]} 21... Kf7 {[%clk 0:02:43.6]} 22.
f4 {[%clk 0:01:47.8]} 22... Bb6 {[%clk 0:02:42.7]} 23. Rh3 {[%clk 0:01:46.2]}
23... h5 {[%clk 0:02:41]} 24. g4 {[%clk 0:01:46.2]} 24... hxg4 {[%clk
0:02:39.1]} 25. Rh7+ {[%clk 0:01:47.5]} 25... Kf6 {[%clk 0:02:40]} 26. Bb2+
{[%clk 0:01:47.9]} 26... Bd4 {[%clk 0:02:39.8]} 27. Ba3 {[%clk 0:01:44.8]} 27...
Rh8 {[%clk 0:02:39.4]} 28. Rxb7 {[%clk 0:01:44.6]} 28... g3 {[%clk 0:02:40.1]}
29. Kg2 {[%clk 0:01:42]} 29... gxh2 {[%clk 0:02:38.8]} 30. Rc7 {[%clk
0:01:39.4]} 30... Rac8 {[%clk 0:02:35.1]} 31. Rd7 {[%clk 0:01:36.6]} 31... Rhd8
{[%clk 0:02:31.7]} 32. Rh7 {[%clk 0:01:33.4]} 32... Bg1 {[%clk 0:02:21.2]} 33.
Bb2+ {[%clk 0:01:31.4]} 33... Kf5 {[%clk 0:02:22.4]} 34. Kg3 {[%clk 0:01:18.1]}
34... Rd3+ {[%clk 0:02:20.5]} 35. Rf3 {[%clk 0:01:13.4]} 35... Rxf3+ {[%clk
0:02:20.9]} 36. Kxf3 {[%clk 0:01:14.8]} 36... Nd4+ {[%clk 0:02:21.6]} 37. Kg3
{[%clk 0:01:09.5]} 37... Ne2+ {[%clk 0:02:20.3]} 38. Kf3 {[%clk 0:01:09.6]}
38... Nd4+ {[%clk 0:02:18.2]} 39. Kg3 {[%clk 0:01:10.6]} 39... Rc2 {[%clk
0:02:17.7]} 40. Ba1 {[%clk 0:01:04.6]} 40... Rxa2 {[%clk 0:02:14.1]} 41. Bc3
{[%clk 0:01:05]} 41... Rc2 {[%clk 0:02:14.3]} 42. Ba1 {[%clk 0:01:05.8]} 42...
Ne2+ {[%clk 0:02:04.3]} 43. Kf3 {[%clk 0:01:06.9]} 43... Bd4 {[%clk 0:02:04.3]}
44. Rf7+ {[%clk 0:01:02.4]} 1-0

[Event "*** Biggest EVER Titled Tuesday"]
[Site "Chess.com"]
[Date "2018.04.17"]
[Round "3"]
[White "Sanan_Sjugirov"]
[Black "GrigorGrigorov"]
[Result "1-0"]
[WhiteElo "2821"]
[BlackElo "2661"]
[TimeControl "180+2"]
[EndTime "13:34:45 PDT"]
[Termination "Sanan_Sjugirov won by resignation"]

1. e4 {[%clk 0:03:01.9]} 1... g6 {[%clk 0:03:00.7]} 2. d4 {[%clk 0:03:02.3]}
2... Bg7 {[%clk 0:03:01.7]} 3. Nc3 {[%clk 0:03:03.5]} 3... c6 {[%clk 0:03:02.1]}
4. f4 {[%clk 0:02:59.1]} 4... d5 {[%clk 0:03:02.7]} 5. e5 {[%clk 0:03:00.3]}
5... Nh6 {[%clk 0:03:03.1]} 6. Nf3 {[%clk 0:02:57.4]} 6... f6 {[%clk 0:03:01.8]}
7. Be3 {[%clk 0:02:49.2]} 7... Bg4 {[%clk 0:03:01.3]} 8. h3 {[%clk 0:02:37.8]}
8... Bxf3 {[%clk 0:03:00.1]} 9. Qxf3 {[%clk 0:02:39.7]} 9... O-O {[%clk
0:03:00.7]} 10. exf6 {[%clk 0:02:40.5]} 10... exf6 {[%clk 0:03:01.7]} 11. g4
{[%clk 0:02:39.7]} 11... f5 {[%clk 0:03:01.4]} 12. O-O-O {[%clk 0:02:32.1]}
12... Nd7 {[%clk 0:03:02.1]} 13. Bd3 {[%clk 0:02:26.4]} 13... b5 {[%clk
0:03:03.1]} 14. Ne2 {[%clk 0:02:21.6]} 14... Nb6 {[%clk 0:03:04]} 15. Ng3 {[%clk
0:02:18.2]} 15... Nc4 {[%clk 0:03:03.4]} 16. gxf5 {[%clk 0:02:15.6]} 16... Nxf5
{[%clk 0:03:04]} 17. Nxf5 {[%clk 0:02:12.1]} 17... gxf5 {[%clk 0:03:04.4]} 18.
Rhg1 {[%clk 0:02:06.7]} 18... Kh8 {[%clk 0:03:03.8]} 19. Rg5 {[%clk 0:01:47.1]}
19... Qd7 {[%clk 0:02:47.1]} 20. Rdg1 {[%clk 0:01:45.1]} 20... Bh6 {[%clk
0:02:44.3]} 21. R5g2 {[%clk 0:01:31.1]} 21... Rae8 {[%clk 0:02:42.3]} 22. Bxc4
{[%clk 0:01:04.9]} 22... bxc4 {[%clk 0:02:25.7]} 23. Qh5 {[%clk 0:01:05]} 23...
Qd6 {[%clk 0:02:13]} 24. Rg6 {[%clk 0:00:49.2]} 24... Qe7 {[%clk 0:01:30.4]} 25.
Bd2 {[%clk 0:00:18.7]} 25... hxg6 {[%clk 0:01:14.3]} 26. Rxg6 {[%clk 0:00:20.6]}
1-0